fUSD/lending_fUSD_20240913
["ID","MTS","AMOUNT","RATE_DAILY","PERIOD"]
[338044076,1726252243512,-151.0,0.000138,2]
[338044078,1726252243521,-151.0,0.000138,2]
[338044080,1726252243534,-151.0,0.000138,2]
[338044082,1726252243543,-151.0,0.000138,2]
[338044083,1726252243552,-151.0,0.000138,2]
[338044085,1726252243561,-151.0,0.000138,2]
[338044087,1726252243570,-189.745641,0.000138,2]
[338044089,1726252243579,-151.0,0.000138,2]
[338044091,1726252243588,-151.0,0.000138,2]
[338044093,1726252243598,-151.0,0.000138,2]
[338044095,1726252243607,-151.0,0.000138,2]
[338044097,1726252243616,-151.0,0.000138,2]
[338044099,1726252243625,-220.2369,0.000138,2]
[338044101,1726252243634,-151.0,0.000138,2]
[338044103,1726252243643,-151.0,0.000138,2]
[338044105,1726252243652,-372.335124,0.000138,2]
[338044107,1726252243661,-151.0,0.000138,2]
[338044109,1726252243670,-372.335124,0.000138,2]
[338044111,1726252243679,-151.0,0.000138,2]
[338044113,1726252243688,-151.0,0.000138,2]
[338044115,1726252243698,-163.461387,0.000138,2]
[338044117,1726252243707,-151.0,0.000138,2]
[338044119,1726252243717,-1134.131747,0.000138,2]
[338044121,1726252243726,-1134.131747,0.000138,2]
[338044123,1726252243735,-151.0,0.000138,2]
[338044125,1726252243744,-151.0,0.000138,2]
[338044127,1726252243753,-151.0,0.000138,2]
[338044129,1726252243762,-151.0,0.000138,2]
[338044131,1726252243771,-194.752804,0.000138,2]
[338044133,1726252243780,-151.0,0.000138,2]
[338044135,1726252243792,-245.695207,0.000138,2]
[338044137,1726252243801,-245.695207,0.000138,2]
[338044139,1726252243810,-151.0,0.000138,2]
[338044141,1726252243820,-206.738762,0.000138,2]
[338044143,1726252243829,-151.0,0.000138,2]
[338044145,1726252243838,-206.738762,0.000138,2]
[338044147,1726252243847,-151.0,0.000138,2]
[338044149,1726252243856,-151.0,0.000138,2]
[338044151,1726252243865,-151.0,0.000138,2]
[338044153,1726252243874,-151.0,0.000138,2]
[338044155,1726252243883,-151.0,0.000138,2]
[338044157,1726252243892,-151.0,0.000138,2]
[338044159,1726252243901,-151.0,0.000138,2]
[338044161,1726252243910,-159.585635,0.000138,2]
[338044163,1726252243918,-151.0,0.000138,2]
[338044165,1726252243927,-413.458968,0.000138,2]
[338044167,1726252243936,-159.585635,0.000138,2]
[338044169,1726252243946,-413.458968,0.000138,2]
[338044171,1726252243954,-337.853607,0.000138,2]
[338044173,1726252243963,-337.853607,0.000138,2]
[338044175,1726252243972,-151.0,0.000138,2]
[338044177,1726252243981,-151.0,0.000138,2]
[338044179,1726252243990,-151.0,0.000138,2]
[338044181,1726252243999,-151.0,0.000138,2]
[338044183,1726252244007,-151.0,0.000138,2]
[338044185,1726252244016,-466.968382,0.000138,2]
[338044187,1726252244025,-466.968382,0.000138,2]
[338044189,1726252244036,-151.0,0.000138,2]
[338044191,1726252244045,-296.65275,0.000138,2]
[338044193,1726252244054,-151.0,0.000138,2]
[338044195,1726252244062,-428.74385,0.000138,2]
[338044197,1726252244071,-296.65275,0.000138,2]
[338044199,1726252244080,-428.74385,0.000138,2]
[338044201,1726252244090,-151.0,0.000138,2]
[338044202,1726252244098,-151.0,0.000138,2]
[338044204,1726252244107,-151.0,0.000138,2]
[338044206,1726252244116,-158.668844,0.000138,2]
[338044208,1726252244125,-158.668844,0.000138,2]
[338044211,1726252244136,-2902.439561,0.000138,2]
[338044213,1726252244146,-151.0,0.000138,2]
[338044215,1726252244157,-2902.439561,0.000138,2]
[338044217,1726252244167,-151.0,0.000138,2]
[338044219,1726252244176,-151.0,0.000138,2]
[338044221,1726252244185,-177.446993,0.000138,2]
[338044223,1726252244194,-151.0,0.000138,2]
[338044225,1726252244204,-177.446993,0.000138,2]
[338044227,1726252244212,-151.0,0.000138,2]
[338044229,1726252244222,-151.0,0.000138,2]
[338044231,1726252244230,-151.0,0.000138,2]
[338044233,1726252244239,-500.0,0.00013833,2]
[338044235,1726252244249,-239.49742193,0.00013833,2]
[338044237,1726252244259,-500.0,0.00013833,2]
[338044239,1726252244268,-500.0,0.00013833,2]
[338044241,1726252244277,-500.0,0.00013833,2]
[338044243,1726252244287,-1812.0670784,0.0001389,2]
[338044245,1726252244296,-5746.6501972,0.0001389,2]
[338044247,1726252244304,-728.8076461,0.0001389,2]
[338044249,1726252244313,-255.0,0.00013899,2]
[338044251,1726252244323,-151.0,0.000139,2]
[338044253,1726252244332,-151.0,0.000139,2]
[338044255,1726252244341,-263.669316,0.000139,2]
[338044257,1726252244350,-151.0,0.000139,2]
[338044259,1726252244359,-151.0,0.000139,2]
[338044261,1726252244369,-151.0,0.000139,2]
[338044263,1726252244378,-151.0,0.000139,2]
[338044265,1726252244391,-151.0,0.000139,2]
[338044267,1726252244400,-151.0,0.000139,2]
[338044269,1726252244409,-198.719914,0.000139,2]
[338044271,1726252244418,-151.0,0.000139,2]
[338044272,1726252244428,-151.0,0.000139,2]
[338044274,1726252244437,-151.0,0.000139,2]
[338044277,1726252244447,-151.0,0.000139,2]
[338044279,1726252244457,-151.0,0.000139,2]
[338044280,1726252244467,-151.0,0.000139,2]
[338044283,1726252244476,-151.0,0.000139,2]
[338044285,1726252244486,-151.0,0.000139,2]
[338044287,1726252244496,-177.6767,0.000139,2]
[338044289,1726252244505,-177.6767,0.000139,2]
[338044291,1726252244514,-151.0,0.000139,2]
[338044293,1726252244523,-151.0,0.000139,2]
[338044294,1726252244532,-151.0,0.000139,2]
[338044297,1726252244551,-151.0,0.000139,2]
[338044298,1726252244560,-151.0,0.000139,2]
[338044300,1726252244569,-151.0,0.000139,2]
[338044302,1726252244578,-151.0,0.000139,2]
[338044305,1726252244588,-151.0,0.000139,2]
[338044307,1726252244597,-151.0,0.000139,2]
[338044309,1726252244606,-151.0,0.000139,2]
[338044311,1726252244616,-151.0,0.000139,2]
[338044312,1726252244625,-151.0,0.000139,2]
[338044314,1726252244634,-151.0,0.000139,2]
[338044316,1726252244643,-372.335124,0.000139,2]
[338044318,1726252244653,-151.0,0.000139,2]
[338044320,1726252244661,-372.335124,0.000139,2]
[338044322,1726252244671,-151.0,0.000139,2]
[338044324,1726252244680,-151.0,0.000139,2]
[338044326,1726252244689,-151.0,0.000139,2]
[338044328,1726252244698,-1134.131747,0.000139,2]
[338044330,1726252244707,-1134.131747,0.000139,2]
[338044332,1726252244716,-151.0,0.000139,2]
[338044334,1726252244725,-151.0,0.000139,2]
[338044336,1726252244735,-151.0,0.000139,2]
[338044338,1726252244744,-151.0,0.000139,2]
[338044340,1726252244753,-151.168547,0.000139,2]
[338044342,1726252244762,-245.695207,0.000139,2]
[338044344,1726252244772,-245.695207,0.000139,2]
[338044346,1726252244781,-151.0,0.000139,2]
[338044348,1726252244794,-206.738762,0.000139,2]
[338044350,1726252244803,-272.759507,0.000139,2]
[338044352,1726252244811,-206.738762,0.000139,2]
[338044354,1726252244821,-151.0,0.000139,2]
[338044356,1726252244830,-151.0,0.000139,2]
[338044358,1726252244839,-151.0,0.000139,2]
[338044360,1726252244848,-151.0,0.000139,2]
[338044362,1726252244857,-151.0,0.000139,2]
[338044381,1726252245026,-151.0,0.000139,2]
[338044383,1726252245036,-258.215504,0.000139,2]
[338044385,1726252245045,-151.0,0.000139,2]
[338044387,1726252245055,-151.0,0.000139,2]
[338044389,1726252245064,-151.0,0.000139,2]
[338044391,1726252245073,-151.0,0.000139,2]
[338044393,1726252245082,-151.0,0.000139,2]
[338044395,1726252245091,-151.0,0.000139,2]
[338044397,1726252245101,-151.0,0.000139,2]
[338044399,1726252245110,-151.0,0.000139,2]
[338044401,1726252245119,-151.0,0.000139,2]
[338044403,1726252245128,-151.0,0.000139,2]
[338044405,1726252245138,-151.0,0.000139,2]
[338044407,1726252245147,-151.0,0.000139,2]
[338044409,1726252245156,-268.249888,0.000139,2]
[338044411,1726252245165,-268.249888,0.000139,2]
[338044413,1726252245174,-495.589278,0.000139,2]
[338044415,1726252245183,-151.0,0.000139,2]
[338044417,1726252245192,-495.589278,0.000139,2]
[338044419,1726252245201,-151.0,0.000139,2]
[338044421,1726252245210,-151.0,0.000139,2]
[338044423,1726252245219,-151.0,0.000139,2]
[338044425,1726252245229,-151.0,0.000139,2]
[338044427,1726252245238,-151.0,0.000139,2]
[338044429,1726252245248,-151.0,0.000139,2]
[338044431,1726252245257,-151.0,0.000139,2]
[338044433,1726252245266,-151.0,0.000139,2]
[338044435,1726252245277,-239.796872,0.000139,2]
[338044437,1726252245287,-151.0,0.000139,2]
[338044439,1726252245296,-151.0,0.000139,2]
[338044441,1726252245307,-151.0,0.000139,2]
[338044443,1726252245316,-164.381114,0.000139,2]
[338044445,1726252245325,-164.381114,0.000139,2]
[338044447,1726252245335,-1893.507064,0.000139,2]
[338044449,1726252245344,-1893.507064,0.000139,2]
[338044451,1726252245354,-159.585635,0.000139,2]
[338044453,1726252245364,-151.0,0.000139,2]
[338044455,1726252245373,-413.458968,0.000139,2]
[338044457,1726252245385,-159.585635,0.000139,2]
[338044459,1726252245395,-413.458968,0.000139,2]
[338044461,1726252245404,-337.853607,0.000139,2]
[338044463,1726252245414,-151.0,0.000139,2]
[338044464,1726252245423,-337.853607,0.000139,2]
[338044466,1726252245433,-151.0,0.000139,2]
[338044468,1726252245442,-479.229,0.000139,2]
[338044470,1726252245451,-479.229,0.000139,2]
[338044471,1726252245462,-151.0,0.000139,2]
[338044472,1726252245472,-151.0,0.000139,2]
[338044473,1726252245481,-151.0,0.000139,2]
[338044474,1726252245490,-466.968382,0.000139,2]
[338044475,1726252245499,-466.968382,0.000139,2]
[338044476,1726252245509,-446897.886563,0.000139,3]
[338044477,1726252245518,-151.0,0.000139,2]
[338044478,1726252245528,-296.65275,0.000139,2]
[338044479,1726252245539,-151.0,0.000139,2]
[338044480,1726252245549,-428.74385,0.000139,2]
[338044481,1726252245559,-296.65275,0.000139,2]
[338044482,1726252245569,-428.74385,0.000139,2]
[338044484,1726252245578,-151.150986,0.000139,2]
[338044486,1726252245588,-151.0,0.000139,2]
[338044488,1726252245597,-151.0,0.000139,2]
[338044490,1726252245607,-158.668844,0.000139,2]
[338044492,1726252245616,-158.668844,0.000139,2]
[338044494,1726252245626,-2902.439561,0.000139,2]
[338044496,1726252245635,-151.0,0.000139,2]
[338044498,1726252245645,-2902.439561,0.000139,2]
[338044500,1726252245654,-193.64158529,0.000139,2]
[338044502,1726252245664,-263.1453569,0.000139,2]
[338044503,1726252245673,-151.0,0.000139,2]
[338044505,1726252245682,-177.446993,0.000139,2]
[338044507,1726252245691,-151.0,0.000139,2]
[338044509,1726252245700,-177.446993,0.000139,2]
[338044511,1726252245710,-189.567455,0.000139,2]
[338044513,1726252245719,-189.567455,0.000139,2]
[338044515,1726252245728,-151.0,0.000139,2]
[338044517,1726252245737,-151.0,0.000139,2]
[338044519,1726252245747,-151.0,0.000139,2]
[338044521,1726252245756,-500.0,0.00013904,2]
[338044523,1726252245765,-500.0,0.00013904,2]
[338044525,1726252245775,-10761.43077784,0.00013922,2]
[338044527,1726252245786,-403.0,0.0001393,2]
[338044529,1726252245800,-152.0,0.00013932,4]
[338044531,1726252245810,-267.67537324,0.00014,2]
[338044533,1726252245819,-1700.80946594,0.00014,2]
[338044535,1726252245829,-1003.12600668,0.00014,2]
[338044537,1726252245838,-173.0,0.00014,2]
[338044539,1726252245847,-150.0,0.00014,2]
[338044541,1726252245857,-615.0,0.00014,7]
[338044543,1726252245866,-1237.45125,0.0001402,2]
[338044545,1726252245875,-174.16,0.00014043,2]
[338044547,1726252245885,-150.0,0.00014059,2]
[338044549,1726252245894,-10761.43077784,0.00014166,2]
[338044551,1726252245903,-236.9932035,0.0001423,2]
[338044553,1726252245913,-399.309732,0.00014247,2]
[338044555,1726252245924,-794.0,0.00014262,2]
[338044557,1726252245934,-500.0,0.00014265,2]
[338044559,1726252245946,-180.42,0.0001427,2]
[338044561,1726252245957,-500.0,0.00014274,2]
[338044564,1726252245967,-500.0,0.00014283,2]
[338044566,1726252245977,-500.0,0.00014292,2]
[338044568,1726252245987,-500.0,0.000143,2]
[338044570,1726252245997,-500.0,0.00014309,2]
[338044572,1726252246007,-500.0,0.00014318,2]
[338044574,1726252246016,-500.0,0.00014327,2]
[338044576,1726252246025,-500.0,0.00014336,2]
[338044578,1726252246038,-500.0,0.00014344,2]
[338044580,1726252246048,-500.0,0.00014353,2]
[338044582,1726252246057,-500.0,0.00014362,2]
[338044584,1726252246066,-500.0,0.00014371,2]
[338044586,1726252246076,-500.0,0.0001438,2]
[338044588,1726252246085,-533.0,0.00014384,2]
[338044590,1726252246094,-500.0,0.00014388,2]
[338044592,1726252246104,-500.0,0.00014397,2]
[338044594,1726252246113,-500.0,0.00014406,2]
[338044596,1726252246123,-10761.43077784,0.00014411,2]
[338044598,1726252246132,-500.0,0.00014415,2]
[338044600,1726252246141,-150.0,0.0001442,2]
[338044602,1726252246151,-500.0,0.00014424,2]
[338044604,1726252246161,-500.0,0.00014432,2]
[338044606,1726252246170,-500.0,0.00014441,2]
[338044608,1726252246180,-500.0,0.00014445,2]
[338044610,1726252246190,-500.0,0.0001445,2]
[338044612,1726252246199,-500.0,0.00014452,2]
[338044614,1726252246209,-500.0,0.00014453,2]
[338044616,1726252246218,-500.0,0.00014459,2]
[338044618,1726252246228,-500.0,0.00014462,2]
[338044620,1726252246237,-500.0,0.00014468,2]
[338044622,1726252246247,-500.0,0.00014471,2]
[338044624,1726252246256,-500.0,0.00014476,2]
[338044626,1726252246265,-500.0,0.0001448,2]
[338044628,1726252246274,-500.0,0.00014485,2]
[338044630,1726252246284,-500.0,0.00014489,2]
[338044632,1726252246293,-1983.9507664,0.0001449,2]
[338044634,1726252246302,-4768.3358915,0.0001449,2]
[338044636,1726252246312,-604.734852,0.0001449,2]
[338044638,1726252246321,-569.779,0.00014492,2]
[338044640,1726252246331,-500.0,0.00014494,2]
[338044642,1726252246340,-500.0,0.00014497,2]
[338044644,1726252246350,-167.0,0.00014499,2]
[338044646,1726252246360,-414170.54005117,0.000145,2]
[338044648,1726252246369,-151.0,0.000145,2]
[338044650,1726252246379,-151.0,0.000145,2]
[338044652,1726252246392,-151.0,0.000145,2]
[338044654,1726252246402,-200.694188,0.000145,2]
[338044656,1726252246412,-288.160193,0.000145,2]
[338044658,1726252246421,-151.0,0.000145,2]
[338044660,1726252246431,-151.0,0.000145,2]
[338044662,1726252246440,-151.0,0.000145,2]
[338044664,1726252246451,-151.0,0.000145,2]
[338044666,1726252246461,-151.0,0.000145,2]
[338044668,1726252246471,-151.0,0.000145,2]
[338044670,1726252246480,-151.0,0.000145,2]
[338044672,1726252246489,-151.0,0.000145,2]
[338044674,1726252246498,-151.0,0.000145,2]
[338044676,1726252246507,-151.0,0.000145,2]
[338044678,1726252246517,-151.0,0.000145,2]
[338044680,1726252246526,-177.6767,0.000145,2]
[338044682,1726252246536,-177.6767,0.000145,2]
[338044684,1726252246545,-151.0,0.000145,2]
[338044686,1726252246554,-151.0,0.000145,2]
[338044688,1726252246564,-151.0,0.000145,2]
[338044690,1726252246574,-158.727079,0.000145,2]
[338044692,1726252246583,-151.0,0.000145,2]
[338044694,1726252246592,-151.0,0.000145,2]
[338044696,1726252246601,-151.0,0.000145,2]
[338044698,1726252246611,-151.0,0.000145,2]
[338044700,1726252246620,-151.0,0.000145,2]
[338044702,1726252246630,-151.0,0.000145,2]
[338044704,1726252246639,-151.0,0.000145,2]
[338044706,1726252246648,-151.0,0.000145,2]
[338044708,1726252246658,-151.0,0.000145,2]
[338044710,1726252246667,-372.335124,0.000145,2]
[338044712,1726252246676,-151.0,0.000145,2]
[338044714,1726252246685,-372.335124,0.000145,2]
[338044716,1726252246694,-151.0,0.000145,2]
[338044718,1726252246703,-151.0,0.000145,2]
[338044720,1726252246712,-151.0,0.000145,2]
[338044722,1726252246721,-290.465355,0.000145,2]
[338044724,1726252246731,-1134.131747,0.000145,2]
[338044726,1726252246740,-1134.131747,0.000145,2]
[338044728,1726252246749,-152.836241,0.000145,2]
[338044730,1726252246761,-151.0,0.000145,2]
[338044733,1726252246772,-151.0,0.000145,2]
[338044735,1726252246781,-151.0,0.000145,2]
[338044736,1726252246791,-245.695207,0.000145,2]
[338044738,1726252246800,-245.695207,0.000145,2]
[338044740,1726252246810,-151.0,0.000145,2]
[338044742,1726252246819,-206.738762,0.000145,2]
[338044744,1726252246828,-206.738762,0.000145,2]
[338044746,1726252246838,-151.0,0.000145,2]
[338044748,1726252246847,-151.0,0.000145,2]
[338044750,1726252246856,-151.0,0.000145,2]
[338044752,1726252246866,-151.0,0.000145,2]
[338044754,1726252246875,-151.0,0.000145,2]
[338044756,1726252246884,-151.0,0.000145,2]
[338044758,1726252246893,-151.0,0.000145,2]
[338044760,1726252246903,-151.0,0.000145,2]
[338044762,1726252246913,-151.0,0.000145,2]
[338044764,1726252246922,-151.0,0.000145,2]
[338044766,1726252246932,-268.249888,0.000145,2]
[338044768,1726252246942,-268.249888,0.000145,2]
[338044771,1726252246952,-495.589278,0.000145,2]
[338044773,1726252246962,-151.0,0.000145,2]
[338044775,1726252246972,-495.589278,0.000145,2]
[338044777,1726252246983,-151.0,0.000145,2]
[338044779,1726252246995,-151.0,0.000145,2]
[338044781,1726252247005,-151.0,0.000145,2]
[338044783,1726252247014,-151.0,0.000145,2]
[338044785,1726252247024,-151.0,0.000145,2]
[338044787,1726252247036,-151.0,0.000145,2]
[338044789,1726252247046,-151.0,0.000145,2]
[338044791,1726252247055,-151.0,0.000145,2]
[338044793,1726252247065,-151.0,0.000145,2]
[338044795,1726252247075,-151.0,0.000145,2]
[338044797,1726252247085,-151.0,0.000145,2]
[338044799,1726252247094,-164.381114,0.000145,2]
[338044801,1726252247104,-164.381114,0.000145,2]
[338044803,1726252247114,-1893.507064,0.000145,2]
[338044805,1726252247123,-1893.507064,0.000145,2]
[338044807,1726252247133,-159.585635,0.000145,2]
[338044809,1726252247143,-151.0,0.000145,2]
[338044811,1726252247152,-413.458968,0.000145,2]
[338044813,1726252247162,-159.585635,0.000145,2]
[338044815,1726252247171,-413.458968,0.000145,2]
[338044817,1726252247180,-337.853607,0.000145,2]
[338044819,1726252247189,-151.0,0.000145,2]
[338044821,1726252247199,-337.853607,0.000145,2]
[338044823,1726252247208,-165.918967,0.000145,2]
[338044825,1726252247218,-479.229,0.000145,2]
[338044827,1726252247228,-479.229,0.000145,2]
[338044829,1726252247238,-151.0,0.000145,2]
[338044831,1726252247248,-151.0,0.000145,2]
[338044833,1726252247257,-151.0,0.000145,2]
[338044835,1726252247267,-466.968382,0.000145,2]
[338044837,1726252247276,-466.968382,0.000145,2]
[338044839,1726252247288,-151.0,0.000145,2]
[338044841,1726252247298,-296.65275,0.000145,2]
[338044843,1726252247308,-151.0,0.000145,2]
[338044845,1726252247319,-428.74385,0.000145,2]
[338044847,1726252247329,-296.65275,0.000145,2]
[338044849,1726252247339,-428.74385,0.000145,2]
[338044851,1726252247348,-151.0,0.000145,2]
[338044853,1726252247358,-151.0,0.000145,2]
[338044855,1726252247368,-158.668844,0.000145,2]
[338044857,1726252247377,-158.668844,0.000145,2]
[338044859,1726252247390,-2902.439561,0.000145,2]
[338044861,1726252247400,-151.0,0.000145,2]
[338044863,1726252247409,-2902.439561,0.000145,2]
[338044865,1726252247419,-151.0,0.000145,2]
[338044867,1726252247429,-177.446993,0.000145,2]
[338044869,1726252247438,-151.0,0.000145,2]
[338044871,1726252247448,-177.446993,0.000145,2]
[338044873,1726252247460,-189.567455,0.000145,2]
[338044875,1726252247469,-189.567455,0.000145,2]
[338044877,1726252247479,-151.0,0.000145,2]
[338044879,1726252247488,-151.0,0.000145,2]
[338044881,1726252247498,-151.0,0.000145,2]
[338044883,1726252247507,-500.0,0.00014503,2]
[338044885,1726252247517,-500.0,0.00014506,2]
[338044887,1726252247526,-214.0,0.0001451,2]
[338044889,1726252247537,-500.0,0.00014512,2]
[338044891,1726252247547,-500.0,0.00014515,2]
[338044893,1726252247556,-213.0,0.0001452,2]
[338044895,1726252247566,-500.0,0.0001452,2]
[338044897,1726252247575,-1000.0,0.00014521,2]
[338044899,1726252247585,-500.0,0.00014524,2]
[338044901,1726252247594,-500.0,0.00014529,2]
[338044903,1726252247604,-500.0,0.00014533,2]
[338044905,1726252247613,-500.0,0.00014538,2]
[338044907,1726252247623,-500.0,0.00014541,2]
[338044909,1726252247632,-500.0,0.00014547,2]
[338044910,1726252247642,-500.0,0.0001455,2]
[338044912,1726252247651,-500.0,0.00014556,2]
[338044914,1726252247660,-500.0,0.00014559,2]
[338044916,1726252247669,-167.0,0.00014561,2]
[338044918,1726252247678,-500.0,0.00014568,2]
[338044920,1726252247688,-500.0,0.00014577,2]
[338044922,1726252247697,-500.0,0.00014585,2]
[338044924,1726252247707,-500.0,0.00014594,2]
[338044926,1726252247716,-5000.0,0.000146,2]
[338044928,1726252247726,-500.0,0.00014603,2]
[338044930,1726252247735,-500.0,0.00014612,2]
[338044932,1726252247745,-500.0,0.00014621,2]
[338044934,1726252247754,-500.0,0.00014629,2]
[338044936,1726252247763,-500.0,0.00014638,2]
[338044938,1726252247774,-500.0,0.00014647,2]
[338044940,1726252247785,-1237.45125,0.0001465,2]
[338044942,1726252247796,-10761.43077784,0.00014655,2]
[338044945,1726252247809,-500.0,0.00014656,2]
[338044947,1726252247821,-500.0,0.00014665,2]
[338044949,1726252247834,-214.0,0.0001467,2]
[338044951,1726252247846,-490.74,0.00014672,2]
[338044954,1726252247858,-500.0,0.00014673,2]
[338044956,1726252247868,-21359.33135993,0.00014679,2]
[338044958,1726252247879,-213.0,0.0001468,2]
[338044960,1726252247889,-500.0,0.00014682,2]
[338044962,1726252247900,-500.0,0.00014691,2]
[338044964,1726252247911,-500.0,0.000147,2]
[338044967,1726252247922,-4061.835942,0.000147,2]
[338044969,1726252247933,-500.0,0.00014709,2]
[338044971,1726252247945,-152.0,0.00014711,5]
[338044973,1726252247956,-500.0,0.00014717,2]
[338044975,1726252247968,-500.0,0.00014726,2]
[338044977,1726252247979,-500.0,0.00014726,2]
[338044979,1726252247990,-500.0,0.00014735,2]
[338044981,1726252248001,-500.0,0.00014735,2]
[338044984,1726252248012,-180.42,0.00014741,2]
[338044986,1726252248023,-500.0,0.00014744,2]
[338044988,1726252248037,-500.0,0.00014744,2]
[338044990,1726252248058,-500.0,0.00014753,2]
[338044992,1726252248070,-500.0,0.00014753,2]
[338044995,1726252248082,-500.0,0.00014761,2]
[338044997,1726252248095,-500.0,0.00014761,2]
[338045000,1726252248109,-1000.0,0.00014764,7]
[338045002,1726252248121,-500.0,0.0001477,2]
[338045004,1726252248133,-500.0,0.0001477,2]
[338045006,1726252248145,-150.0,0.00014773,2]
[338045008,1726252248155,-500.0,0.00014779,2]
[338045010,1726252248167,-500.0,0.00014779,2]
[338045013,1726252248179,-150.0,0.0001478,2]
[338045015,1726252248190,-2155.8344544,0.00014784,2]
[338045017,1726252248201,-2327.7181425,0.00014784,2]
[338045019,1726252248212,-3790.0215858,0.00014784,2]
[338045021,1726252248222,-2811.7072801,0.00014784,2]
[338045023,1726252248235,-480.662058,0.00014784,2]
[338045026,1726252248247,-356.589264,0.00014784,2]
[338045028,1726252248260,-500.0,0.00014788,2]
[338045030,1726252248271,-500.0,0.00014788,2]
[338045032,1726252248283,-151.0,0.00014794,2]
[338045034,1726252248294,-151.0,0.00014794,2]
[338045037,1726252248305,-151.0,0.00014794,2]
[338045039,1726252248316,-151.0,0.00014794,2]
[338045041,1726252248327,-151.0,0.00014794,2]
[338045043,1726252248337,-151.0,0.00014794,2]
[338045045,1726252248347,-4662.2844124,0.00014794,2]
[338045047,1726252248358,-151.0,0.00014794,2]
[338045049,1726252248368,-151.0,0.00014794,2]
[338045050,1726252248379,-176.55999,0.00014794,2]
[338045051,1726252248394,-151.0,0.00014794,2]
[338045052,1726252248406,-151.0,0.00014794,2]
[338045053,1726252248417,-151.0,0.00014794,2]
[338045054,1726252248428,-151.0,0.00014794,2]
[338045055,1726252248439,-151.0,0.00014794,2]
[338045056,1726252248450,-187.335276,0.00014794,2]
[338045057,1726252248462,-151.0,0.00014794,2]
[338045058,1726252248473,-151.0,0.00014794,2]
[338045059,1726252248488,-151.0,0.00014794,2]
[338045060,1726252248499,-151.0,0.00014794,2]
[338045062,1726252248511,-151.0,0.00014794,2]
[338045065,1726252248524,-151.0,0.00014794,2]
[338045067,1726252248539,-151.0,0.00014794,2]
[338045069,1726252248551,-151.0,0.00014794,2]
[338045071,1726252248563,-151.0,0.00014794,2]
[338045073,1726252248574,-239.018741,0.00014794,2]
[338045076,1726252248586,-151.0,0.00014794,2]